Cogmind - Beta 14 @@@ ROGUE MODE // 2024.08.28 @ 17:42:39 Player: BadFPS Result: Destroyed by G-34 Mercenary with Small Laser Performance ------------- Evolutions (0) 0 Regions Visited (4) 800 Robots Destroyed (25) 125 Value Destroyed (456) 456 Prototype IDs (23) 460 Alien Tech Used (0) 0 Bonus (300) 300 TOTAL SCORE: 2141 Bonus ------- Aligned with FarCom 300 Cogmind --------- Core Integrity 0/250 Matter 250/300 Energy 82/100 System Corruption 0% Temperature Cool (74) Movement Core (50) Location -9/Mines Parts ------- > --- POWER (1) -------- (None) > --- PROPULSION (2) --- (None) > --- UTILITY (2) ------ Signal Interpreter > --- WEAPON (2) ------- Small Laser Small Laser > --- INVENTORY (5) ---- Medium Battery (124) Sensor Array Datajack Peak State ------------ > --- POWER ------------ Light Ion Engine > --- PROPULSION ------- Aluminum Leg Aluminum Leg > --- UTILITY ---------- Heat Sink Seismic Detector > --- WEAPON ----------- Particle Gun Assault Rifle > --- INVENTORY -------- Signal Interpreter Small Laser Small Laser Mining Laser [Rating: 8] Favorites ----------- Power Light Ion Engine Engine Light Ion Engine Propulsion Hover Unit Leg Aluminum Leg Wheel Wheel Hover Unit Hover Unit Utility Signal Interpreter Device Sensor Array Storage Medium Battery Processor Signal Interpreter Weapon Small Laser Energy Gun Small Laser Energy Cannon Beam Cannon Ballistic Gun Light Assault Rifle Build | -11 -10 -10 -10 -9 ------- Run | Yrd Mat Min Exi Min Slots Evolved . | . . . . . Power . | . . . . . Propulsion . | . . . . . Utility . | . . . . . Weapon . | . . . . . Parts Attached 37 | 12 17 1 . 7 Power 5 | 2 3 . . . Engine 5 | 2 3 . . . Core . | . . . . . Reactor . | . . . . . Propulsion 10 | 5 5 . . . Treads . | . . . . . Leg 6 | 3 3 . . . Wheel 2 | 2 . . . . Hover 2 | . 2 . . . Flight . | . . . . . Utility 6 | 2 3 . . 1 Device 3 | 2 1 . . . Storage 1 | . . . . 1 Processor 2 | . 2 . . . Hackware . | . . . . . Protection . | . . . . . Artifact . | . . . . . Weapon 16 | 3 6 1 . 6 Energy Gun 11 | . 5 1 . 5 Energy Cannon 1 | . . . . 1 Ballistic Gun 4 | 3 1 . . . Ballistic Cannon . | . . . . . Launcher . | . . . . . Special Weapon . | . . . . . Impact Weapon . | . . . . . Slashing Weapon . | . . . . . Piercing Weapon . | . . . . . Special Melee Weapon . | . . . . . Unidentified Prototypes . | . . . . . Parts Lost 10 | . 6 . . 4 Power 2 | . 1 . . 1 Propulsion 4 | . 3 . . 1 Utility 1 | . 1 . . . Weapon 3 | . 1 . . 2 Highest Loss Streak 4 | . 4 . . 4 To Critical Strikes . | . . . . . Average Slot Usage (%) 87 | . 94 84 85 77 Engine 13 | . 12 14 14 12 Leg 5 | . 14 . . . Hover 12 | . 12 14 14 10 Device 17 | . 24 14 14 9 Processor 9 | . 2 14 14 14 Energy Gun 25 | . 24 27 28 22 Ballistic Gun 1 | . 2 . . . Peak Build Rating 8 | 7 8 6 8 7 Average Rating 6 | 5 7 5 6 5 On Entrance 5 | . 7 7 6 6 Naked Turns . | . . . . . Heaviest Build 11 | 9 11 6 6 11 Greatest Support 20 | 20 20 6 6 6 Greatest Overweight (x) 3 | . 3 . . 1 Average Overweight (x) . | . . . . . Largest Inventory Capacity 5 | 5 5 5 5 5 Average Capacity 5 | 5 5 5 5 5 Most Carried 5 | 5 5 5 5 5 Average Carried 4 | 3 4 4 4 4 Final Capacity 5 | 5 5 5 5 5 Final Carried 5 | 5 5 5 5 3 Class Distribution -------------------- 66% | Scavenger-Mutant 26% | Mutant 7% | Scavenger-Scout Dominant Class ---------------- Scavenger-Mutant | -10/Materials Scavenger-Mutant | -10/Mines Scavenger-Mutant | -10/Exiles Scavenger-Scout | -9/Mines Resources | -11 -10 -10 -10 -9 ----------- Run | Yrd Mat Min Exi Min Matter Collected 590 | 343 237 10 . . Remotely . | . . . . . Salvage Created 769 | 73 550 . . 146 Parts 62 | 10 41 . . 11 Haulers Intercepted 1 | . 1 . . . Recyclers Shooed . | . . . . . Parts Field Recycled . | . . . . . Retrieved Matter . | . . . . . Parts Self-Destructed . | . . . . . Prevented . | . . . . . Kills | -11 -10 -10 -10 -9 ------- Run | Yrd Mat Min Exi Min Combat Hostiles Destroyed 12 | 1 8 . . 3 Guns 11 | 1 8 . . 2 Cannons 1 | . . . . 1 Classes Destroyed 8 | 2 6 . . . Worker 4 | . 4 . . . Tunneler 3 | 2 . . . 1 Hauler 1 | . 1 . . . Recycler 1 | . 1 . . . Operator 1 | . 1 . . . Watcher 3 | . 3 . . . Swarmer 3 | . 3 . . . Grunt 9 | 1 5 . . 3 Best Kill Streak 5 | 1 5 . . 2 Combat Bots Only 3 | 1 3 . . 2 Max Kills in Single Turn 1 | 1 1 . . 1 Gunslinging . | . . . . . Exploded . | . . . . . Melee . | . . . . . Uniques/NPCs Destroyed . | . . . . . Combat | -11 -10 -10 -10 -9 -------- Run | Yrd Mat Min Exi Min Hostile Shots Fired 123 | 7 78 . . 38 Missed 31 | 3 20 . . 8 Damage Taken 994 | 47 610 . . 337 Core 251 | . 118 . . 133 Absorbed by Shields . | . . . . . Core Remaining (%) 100 | 100 . . . . Volleys Fired 81 | 21 50 . . 10 Largest 2 | 2 2 . . 2 Hottest 125 | 40 105 . . 125 Shots Fired 159 | 42 97 . . 20 Gun 153 | 42 97 . . 14 Cannon 6 | . . . . 6 Launcher . | . . . . . Special . | . . . . . Kinetic 56 | 42 14 . . . Thermal 103 | . 83 . . 20 Explosive . | . . . . . Electromagnetic . | . . . . . Robot Hit Streak 7 | 7 6 . . 7 Robot Miss Streak 2 | 2 2 . . 2 Penetration Max . | . . . . . Secondary Targets 4 | . 4 . . . Max Gunslinging Chain 1 | . 1 . . . Shots Hit Robots 98 | 27 59 . . 12 Core Hits 38 | 7 26 . . 5 Critical Kills . | . . . . . Critical Parts Destroyed . | . . . . . Critical Strikes 2 | . 1 . . 1 Burn 2 | . 1 . . 1 Melee Attacks . | . . . . . Impact . | . . . . . Slashing . | . . . . . Piercing . | . . . . . Sneak Attacks . | . . . . . Combat Hostiles . | . . . . . Follow-up Attacks . | . . . . . Damage Inflicted 1174 | 213 757 . . 204 Guns 1085 | 213 757 . . 115 Cannons 89 | . . . . 89 Explosions . | . . . . . Melee . | . . . . . Ramming . | . . . . . Kinetic 351 | 213 138 . . . Thermal 823 | . 619 . . 204 Explosive . | . . . . . Electromagnetic . | . . . . . Impact . | . . . . . Slashing . | . . . . . Piercing . | . . . . . Highest Corruption . | . . . . . Average Corruption . | . . . . . Corruption Purged . | . . . . . Corruption Blocked . | . . . . . Overload Shots . | . . . . . Overflow Damage . | . . . . . Projectiles . | . . . . . Explosions . | . . . . . Melee . | . . . . . Knockbacks . | . . . . . Impact . | . . . . . Kinetic . | . . . . . Secondary . | . . . . . Self-Inflicted Damage . | . . . . . Shots . | . . . . . Rammed . | . . . . . Targets Rammed . | . . . . . Kicked . | . . . . . Crushed . | . . . . . Highest Temperature 221 | 12 165 . . 221 Average Temperature 53 | 8 33 . . 110 Received Heat Transfer 393 | 24 189 . . 180 Siege Activations . | . . . . . Robots Corrupted . | . . . . . Combat Hostiles . | . . . . . Parts Fried . | . . . . . Impact Corruptions . | . . . . . Robots Melted . | . . . . . Combat Hostiles . | . . . . . Parts Melted . | . . . . . Heat Transferred 2024 | . 1504 . . 520 Parts Sabotaged . | . . . . . Parts Stolen . | . . . . . Parts Stripped . | . . . . . Power Chain Reactions . | . . . . . Alert | -11 -10 -10 -10 -9 ------- Run | Yrd Mat Min Exi Min Peak Influence 255 | 30 255 76 . 45 Initial 76 | . 19 76 . . Average 87 | 14 151 76 . 4 Maximum Alert Level 1 | . 1 . . . Low Security (%) 83 | 100 62 100 . 100 Level 1 16 | . 37 . . . Level 2 . | . . . . . Level 3 . | . . . . . Level 4 . | . . . . . Level 5 . | . . . . . High Security . | . . . . . Max Security . | . . . . . Squads Dispatched 3 | . 3 . . . Investigation 1 | . 1 . . . Extermination . | . . . . . Reinforcement 2 | . 2 . . . Assault . | . . . . . Garrison . | . . . . . Intercept . | . . . . . Searches Triggered . | . . . . . Construction Impeded . | . . . . . Haulers Reinforced . | . . . . . Active Scanning Responses . | . . . . . Cargo Convoy Interrupts . | . . . . . Stealth | -11 -10 -10 -10 -9 --------- Run | Yrd Mat Min Exi Min Distress Signals 1 | . 1 . . . Communications Jammed . | . . . . . Distress Signals . | . . . . . Times Spotted 28 | 1 22 . . 5 Peak Tracking Total 5 | 1 5 . . 3 Tactical Retreats 1 | . 1 . . . Traps | -11 -10 -10 -10 -9 ------- Run | Yrd Mat Min Exi Min Traps Triggered 2 | . 2 . . . Indirectly . | . . . . . Trap Hack Attempts . | . . . . . Triggered . | . . . . . Disarmed . | . . . . . Reprogrammed . | . . . . . Reused . | . . . . . Traps Extracted . | . . . . . Installed . | . . . . . Triggered . | . . . . . Machines | -11 -10 -10 -10 -9 ---------- Run | Yrd Mat Min Exi Min Machines Disabled 1 | . 1 . . . Max in Single Turn 1 | . 1 . . . Machines Repaired . | . . . . . Machines Dismantled . | . . . . . Machines Sabotaged . | . . . . . Overloaded Fab Kills . | . . . . . Hacking | -11 -10 -10 -10 -9 --------- Run | Yrd Mat Min Exi Min Machines Accessed 6 | . 1 . 5 . Terminals 1 | . 1 . . . Fabricators . | . . . . . Repair Stations . | . . . . . Recycling Units . | . . . . . Scanalyzers . | . . . . . Garrison Access . | . . . . . Total Hacks 53 | . 3 . 50 . Successful 52 | . 2 . 50 . Failed 1 | . 1 . . . Catastrophic . | . . . . . Database Lockouts . | . . . . . Manual 1 | . . . 1 . Terminals 3 | . 3 . . . Fabricators . | . . . . . Repair Stations . | . . . . . Recycling Units . | . . . . . Scanalyzers . | . . . . . Garrison Access . | . . . . . Terminal Hacks 52 | . 2 . 50 . Record 51 | . 2 . 49 . Derelict Proto ID Bank 1 | . . . 1 . Fabricator Hacks . | . . . . . Repair Station Hacks . | . . . . . Recycling Unit Hacks . | . . . . . Scanalyzer . | . . . . . Garrison Access Hacks . | . . . . . Unauthorized Hacks . | . . . . . Terminals . | . . . . . Fabricators . | . . . . . Repair Stations . | . . . . . Recycling Units . | . . . . . Scanalyzers . | . . . . . Garrison Access . | . . . . . Data Cores Recovered . | . . . . . Used . | . . . . . Hacking Detections 1 | . 1 . . . Full Trace Events 1 | . 1 . . . Feedback Events . | . . . . . Feedback Blocked . | . . . . . Robot Schematics Acquired . | . . . . . Robots Built . | . . . . . Authchips . | . . . . . Time . | . . . . . Total Robot Build Rating . | . . . . . Part Schematics Acquired . | . . . . . Parts Built . | . . . . . Authchips . | . . . . . Time . | . . . . . Total Part Build Rating . | . . . . . Parts Repaired . | . . . . . Time . | . . . . . Parts Recycled . | . . . . . Recycled Matter . | . . . . . Retrieved Matter . | . . . . . Retrieved Components . | . . . . . Parts Scanalyzed . | . . . . . Part Schematics Acquired . | . . . . . Parts Damaged . | . . . . . Bothacking | -11 -10 -10 -10 -9 ------------ Run | Yrd Mat Min Exi Min Used RIF Installer . | . . . . . Robots Hacked . | . . . . . Non-combat . | . . . . . Combat . | . . . . . Robot Hacks Applied . | . . . . . Relay Couplers Released . | . . . . . Fabnet Peak Effective % . | . . . . . Robots Rewired . | . . . . . Allies Hacked . | . . . . . Hacks Repelled . | . . . . . Allies | -11 -10 -10 -10 -9 -------- Run | Yrd Mat Min Exi Min Total Allies . | . . . . . Largest Group . | . . . . . Highest-Rated Group . | . . . . . Highest-Rated Ally . | . . . . . Total Orders . | . . . . . Ally Attacks . | . . . . . Total Damage . | . . . . . Kills . | . . . . . Allies Corrupted . | . . . . . Allies Melted . | . . . . . Intel | -11 -10 -10 -10 -9 ------- Run | Yrd Mat Min Exi Min Robot Analysis Total . | . . . . . Derelict Logs Recovered 1 | . . 1 . . Drone Launches . | . . . . . Drone Recoveries . | . . . . . Exploration | -11 -10 -10 -10 -9 ------------- Run | Yrd Mat Min Exi Min Turns Passed 1770 | 241 607 313 393 216 Spaces Moved 1874 | 139 458 474 647 156 Core 48 | 21 26 . . 1 Treads . | . . . . . Legs 221 | 118 103 . . . Wheels . | . . . . . Hover 1605 | . 329 474 647 155 Flight . | . . . . . Fastest Speed 50 | 50 56 60 60 50 Average Speed 68 | 109 78 60 60 61 Slowest Speed 200 | 120 200 60 60 120 Overloaded Moves . | . . . . . Propulsion Burnouts . | . . . . . Robots Hopped . | . . . . . Cave-ins Triggered . | . . . . . Exploration Rate (%) 56 | 5 47 88 93 47 Regions Visited 4 Branch Regions 3 Pre-discovered Areas 2 | . . 1 1 . Known Exits Taken 3 | . 1 1 1 . Unknown Exits Taken 1 | 1 . . . . Scrap Searched 4 | . . 3 . 1 Spaces Dug . | . . . . . Terrain Destroyed . | . . . . . Melee . | . . . . . Projectile . | . . . . . AOE . | . . . . . Terrain Rammed . | . . . . . Walls Destroyed . | . . . . . Machines Disabled . | . . . . . Actions | -11 -10 -10 -10 -9 --------- Run | Yrd Mat Min Exi Min Total 2223 | 195 613 503 652 260 Wait 158 | 6 55 22 . 75 Move 1870 | 138 457 473 646 156 Hop . | . . . . . Pick Up 26 | 8 11 3 3 1 Fast Attach 27 | 9 13 1 . 4 Attach 6 | 2 1 . . 3 Detach 12 | 4 3 . . 5 Swap 4 | 1 3 . . . Drop 39 | 6 20 4 3 6 Fire 81 | 21 50 . . 10 Melee . | . . . . . Ram . | . . . . . Kick . | . . . . . Crush . | . . . . . Escape Stasis . | . . . . . Rewire . | . . . . . Trap . | . . . . . Miscellaneous . | . . . . . Route ------- -11/Scrapyard -10/Materials (discovered 3 exits: *Mat x2 / *Min) -10/Mines (discovered 3 exits: *Mat x2 / *Exi) -10/Exiles (discovered 2 exits: *Min x2) -9/Mines History --------- Turn | Location | Event 2 | -11/Scrapyard | Met Revision 17 74 | -11/Scrapyard | Discovered new exit (range 8) 242 | -11/Scrapyard | Entered Materials 315 | -10/Materials | Build established: Mutant 439 | -10/Materials | Lost 4 parts (1p2n1w) 502 | -10/Materials | Discovered new exit (range 15) 627 | -10/Materials | Discovered new exit (range 5) 700 | -10/Materials | Build established: Scavenger-Mutant 829 | -10/Materials | Discovered new exit (range 15) 848 | -10/Materials | Identified exit to Mines 849 | -10/Materials | Entered Mines 914 | -10/Mines | Discovered new exit (range 15) 922 | -10/Mines | Identified exit to Materials 1003 | -10/Mines | Discovered exit to Materials (range 3) 1047 | -10/Mines | Deemed a non-threat by the Exiles lab entrance 1047 | -10/Mines | Discovered new exit (range 5) 1050 | -10/Mines | Identified exit to Exiles 1162 | -10/Mines | Entered Exiles 1173 | -10/Exiles | Discovered new exit (range 14) 1180 | -10/Exiles | Identified exit to Mines 1193 | -10/Exiles | Met 8R-AWN 1203 | -10/Exiles | Met EX-HEX 1243 | -10/Exiles | Met EX-DEC 1260 | -10/Exiles | Visited The Gauntlet 1334 | -10/Exiles | Learned location of Zion (-7) 1383 | -10/Exiles | Discovered exit to Mines (range 10) 1423 | -10/Exiles | Met EX-BIN 1430 | -10/Exiles | Aligned with FarCom system 1431 | -10/Exiles | Given EX-Vault access code 1463 | -10/Exiles | Opened EX-Vault 1467 | -10/Exiles | Found Prototype Energy Cannon 1496 | -10/Exiles | Identified YOLO Cannon 1512 | -10/Exiles | Warned to stay clear of 0b10 Research branches 1555 | -10/Exiles | Entered Mines 1655 | -9/Mines | Excavation squad dispatched 1655 | -9/Mines | A large section of the Mines collapsed 1727 | -9/Mines | Core integrity fell below 50% 1761 | -9/Mines | Core integrity fell below 20% 1771 | -9/Mines | Destroyed by G-34 Mercenary with Small Laser Last Messages --------------- 01761_ K-01 Serf collects debris. 01761_ U-05 Engineer lays Concrete. 01762_ Acquired Sml. Laser. 01762_ U-05 Engineer lays Concrete. 01763_ T-07 Excavator is excavating. 01763_ U-05 Engineer lays Concrete. 01764_ G-34 Mercenary destroyed. 01764_ T-07 Excavator is excavating. 01764_ U-05 Engineer lays Concrete. 01765_ T-07 Excavator is excavating. 01765_ K-01 Serf collects debris. 01765_ U-05 Engineer lays Concrete. 01766_ U-05 Engineer destroyed. 01766_ T-07 Excavator is excavating. 01766_ U-05 Engineer lays Concrete. 01767_ T-07 Excavator is excavating. 01768_ U-05 Engineer lays Concrete. 01768_ K-01 Serf collects debris. 01769_ T-07 Excavator is excavating. [Achievement: First Step to Greatness] Map ----- +----------------------------------------------------+ | ??????????????????????????????????????? | | ??????????????????????????????????????? | | ??????????????????????????????????????? | | ??????????????????????????????????????? | | ??????????????????????????????????????? | | ??????????????????????????????????????? | | ??????????????????????????????????????? | | ??????????????????????????????????????? | | ??????????????????????????????????????? | | ??????????????????????????????????????? | | ????????????????????#?????????????????? | | ???????????????????# ?????????????ss??? | | ???????????????????# ?????????????????? | | ???????????????????# ?????????????s??? | | ???????????????????# ????????????????? | | ???????????????????# ????????????????? | | ??????????????????## ????????????????? | | ??????????????????? ????????????????? | | ???????????????????#% ????????????????? | | ??????????????????## ##??????????????? | | ?????????????????## #??????????????? | | ????????????????## ##?????????????? | | ????????????????# !g###???????????? | | ????????????????# ;%=%!##??????????? | | ?????????????????# %== #??????????? | | ?????????????????## = @ #??????????? | | ?????????????????## #??????????? | | ?????????????##### #??????????? | | ?????????????# k ; ! ##?????????? | | ????????? % k tt!t #####??????? | | ????????? ; tua ## ##?????? | | ?????????#### ##;# ##????? | | ????????????## ##### #;; ##???? | | ?????????????## #????##### ##??? | | ??????????????###??????####### #??? | | ??????????????#####??????????## #??? | | ?????????????## ##?????????## ##??? | | ?????????????# ############ ##???? | | ?????????????# #????? | | ????????????## #????? | | ????????????# ####### ######????? | | ???????????? ?????# #?????????? | | ????????????? ?????# ###???????? | | ?????????????? ??????# #???????? | | ??????????????? ??????### #???????? | | ???????????????? #????????# #???????? | | ######?????????# #????????# ####????? | | ? ##???????# #??####### ##???? | | ??? #??????# #### ##??? | | ????# ????### ##?? | +----------------------------------------------------+ Best States ------------- Heat Dissipation 35 Energy Generation 10 Energy Capacity 275 Matter Stores 300 Matter Capacity 300 Sight Range 16 Robot Scan Range 14 Terrain Scan Density 10 Evasion (%) 55 Item Schematics ----------------- None Robot Schematics ------------------ None Fabricated ------------ Nothing Alien Tech Used ----------------- None Achievements -------------- First Step to Greatness Librarian Loot Pinata Tourist Uninvited Guest Challenges ------------ None Game ------ Seed AngularAutogunLaser Manual? 0 Play Time 01:08:10 Cumulative 1.1 hours Start 2024.08.28 @ 16:26:40 End 2024.08.28 @ 17:42:39 Sessions 1 Manual Loads 0 Difficulty Rogue Special Mode None Game No. 1 Rogue 1 Adventurer 0 Explorer 0 Win Type - Total 0 Types 0/0/0/0/0/0/0/0/0 Lore% 5 Gallery% 1 Achievement% 1 Wizard Run 0 Options --------- Layout 1 ASCII 0 Keyboard 0 Movement Mouse Keybinds 0 Fullscreen 1 Font 24/X11 Map View 50x35 Zoom Use 0% Tactical HUD 1 Map Filters NONE Filters NONE Steam 1 RUN: 0e5198b6-1dd5-4828-a989-74d813f08fa3